[Event "Titled Tuesday Blitz December 06 Late 2022"]
[White "Rian, Kapriaga"]
[Black "Figorito, Nick"]
[WhiteFideId "7103263"]
[BlackFideId "30923689"]
[WhiteElo "2252"]
[BlackElo "2381"]
[Result "1-0"]
[Round "11"]
[TimeControl "180+1"]
[Date "2022.12.07"]
[WhiteClock "0:00:09"]
[BlackClock "0:00:27"]

1. d4 {[%clk 0:03:00]}  Nf6 {[%clk 0:03:00]} 2. Nf3 {[%clk 0:03:00]}  g6 {[%clk 0:03:00]} 3. Bg5 {[%clk 0:03:00]}  Bg7 {[%clk 0:03:01]} 4. Nbd2 {[%clk 0:02:59]}  d5 {[%clk 0:03:01]} 5. e3 {[%clk 0:02:59]}  Nbd7 {[%clk 0:03:00]} 6. c4 {[%clk 0:02:59]}  c6 {[%clk 0:03:00]} 7. Be2 {[%clk 0:02:57]}  O-O {[%clk 0:03:00]} 8. cxd5 {[%clk 0:02:56]}  cxd5 {[%clk 0:03:00]} 9. O-O {[%clk 0:02:56]}  e6 {[%clk 0:03:00]} 10. Qb3 {[%clk 0:02:55]}  Qb6 {[%clk 0:02:58]} 11. Rfc1 {[%clk 0:02:53]}  Qxb3 {[%clk 0:02:58]} 12. Nxb3 {[%clk 0:02:52]}  Ne4 {[%clk 0:02:50]} 13. Bf4 {[%clk 0:02:49]}  Ndf6 {[%clk 0:02:43]} 14. Rc7 {[%clk 0:02:44]}  Ne8 {[%clk 0:02:27]} 15. Rc2 {[%clk 0:02:41]}  Bd7 {[%clk 0:02:20]} 16. Rac1 {[%clk 0:02:37]}  Ba4 {[%clk 0:02:13]} 17. Bd3 {[%clk 0:02:32]}  Bxb3 {[%clk 0:02:12]} 18. axb3 {[%clk 0:02:31]}  N8f6 {[%clk 0:02:09]} 19. Rc7 {[%clk 0:02:29]}  b6 {[%clk 0:02:04]} 20. h3 {[%clk 0:02:22]}  Rfd8 {[%clk 0:02:03]} 21. Ne5 {[%clk 0:02:20]}  Nd6 {[%clk 0:01:54]} 22. Nc6 {[%clk 0:02:15]}  Nde8 {[%clk 0:01:40]} 23. Nxd8 {[%clk 0:02:10]}  Nxc7 {[%clk 0:01:35]} 24. Bxc7 {[%clk 0:02:10]}  Ne8 {[%clk 0:01:22]} 25. Nc6 {[%clk 0:01:36]}  Bf8 {[%clk 0:01:01]} 26. Be5 {[%clk 0:01:30]}  f6 {[%clk 0:00:59]} 27. Bg3 {[%clk 0:01:29]}  Kf7 {[%clk 0:00:57]} 28. Ba6 {[%clk 0:01:25]}  Nd6 {[%clk 0:00:50]} 29. f3 {[%clk 0:01:17]}  Nf5 {[%clk 0:00:48]} 30. Bf2 {[%clk 0:01:02]}  Bd6 {[%clk 0:00:37]} 31. g4 {[%clk 0:00:59]}  Ng7 {[%clk 0:00:31]} 32. Kg2 {[%clk 0:00:59]}  h5 {[%clk 0:00:31]} 33. Bg3 {[%clk 0:00:58]}  Bxg3 {[%clk 0:00:29]} 34. Kxg3 {[%clk 0:00:58]}  g5 {[%clk 0:00:28]} 35. Nb4 {[%clk 0:00:51]}  h4+ {[%clk 0:00:27]} 36. Kg2 {[%clk 0:00:50]}  Ne8 {[%clk 0:00:28]} 37. Kf2 {[%clk 0:00:40]}  Ke7 {[%clk 0:00:26]} 38. e4 {[%clk 0:00:32]}  dxe4 {[%clk 0:00:23]} 39. fxe4 {[%clk 0:00:32]}  Kd6 {[%clk 0:00:23]} 40. Ke3 {[%clk 0:00:31]}  Nc7 {[%clk 0:00:22]} 41. Rc6+ {[%clk 0:00:25]}  Kd7 {[%clk 0:00:23]} 42. Rc1 {[%clk 0:00:24]}  Re8 {[%clk 0:00:17]} 43. Rf1 {[%clk 0:00:20]}  Rf8 {[%clk 0:00:17]} 44. Bd3 {[%clk 0:00:18]}  a5 {[%clk 0:00:17]} 45. Nc2 {[%clk 0:00:18]}  Ke7 {[%clk 0:00:17]} 46. Na3 {[%clk 0:00:17]}  Rb8 {[%clk 0:00:16]} 47. Nb1 {[%clk 0:00:15]}  b5 {[%clk 0:00:16]} 48. Nc3 {[%clk 0:00:15]}  b4 {[%clk 0:00:16]} 49. Na4 {[%clk 0:00:15]}  Rd8 {[%clk 0:00:16]} 50. Nc5 {[%clk 0:00:14]}  Ne8 {[%clk 0:00:14]} 51. Ra1 {[%clk 0:00:14]}  Ra8 {[%clk 0:00:14]} 52. Bc4 {[%clk 0:00:13]}  Nc7 {[%clk 0:00:14]} 53. Nb7 {[%clk 0:00:12]}  a4 {[%clk 0:00:09]} 54. Rxa4 {[%clk 0:00:12]}  Rb8 {[%clk 0:00:10]} 55. Na5 {[%clk 0:00:10]}  Ne8 {[%clk 0:00:09]} 56. Nc6+ {[%clk 0:00:09]}  Kd6 {[%clk 0:00:10]} 57. Nxb8 {[%clk 0:00:09]}  Nc7 {[%clk 0:00:11]} 58. Na6 {[%clk 0:00:09]}  Ke7 {[%clk 0:00:12]} 59. Nxc7 {[%clk 0:00:08]}  Kd6 {[%clk 0:00:12]} 60. Rxb4 {[%clk 0:00:08]}  Ke7 {[%clk 0:00:13]} 61. Rb6 {[%clk 0:00:08]}  Kd7 {[%clk 0:00:14]} 62. Rxe6 {[%clk 0:00:07]}  Kxc7 {[%clk 0:00:15]} 63. Rxf6 {[%clk 0:00:07]}  Kd7 {[%clk 0:00:16]} 64. Rf5 {[%clk 0:00:07]}  Kc7 {[%clk 0:00:16]} 65. Rxg5 {[%clk 0:00:07]}  Kd7 {[%clk 0:00:17]} 66. Rh5 {[%clk 0:00:08]}  Kc7 {[%clk 0:00:18]} 67. Rxh4 {[%clk 0:00:08]}  Kd7 {[%clk 0:00:19]} 68. Rh5 {[%clk 0:00:08]}  Kc7 {[%clk 0:00:20]} 69. Rf5 {[%clk 0:00:08]}  Kd7 {[%clk 0:00:21]} 70. h4 {[%clk 0:00:09]}  Kc7 {[%clk 0:00:22]} 71. h5 {[%clk 0:00:09]}  Kd7 {[%clk 0:00:23]} 72. h6 {[%clk 0:00:09]}  Kc7 {[%clk 0:00:24]} 73. h7 {[%clk 0:00:10]}  Kd7 {[%clk 0:00:25]} 74. h8=Q {[%clk 0:00:09]}  Kc7 {[%clk 0:00:25]} 75. Qh7+ {[%clk 0:00:09]}  Kd6 {[%clk 0:00:26]} 76. Qg6+ {[%clk 0:00:09]}  Ke7 {[%clk 0:00:26]} 77. Rf7+ {[%clk 0:00:09]}  Ke8 {[%clk 0:00:27]} 78. Qg8# {[%clk 0:00:09]} 1-0


[Site "https://www.chess.com"]

[Event "Titled Tuesday Blitz December 06 Late 2022"]
[White "Rustemov, Alexander"]
[Black "Popilski, Gil"]
[WhiteFideId "4119002"]
[BlackFideId "2809060"]
[WhiteElo "2788"]
[BlackElo "2537"]
[Result "1-0"]
[Round "11"]
[TimeControl "180+1"]
[Date "2022.12.06"]
[WhiteClock "0:00:05"]
[BlackClock "0:00:10"]

1. d4 {[%clk 0:03:00]}  Nf6 {[%clk 0:02:48]} 2. c4 {[%clk 0:03:00]}  g6 {[%clk 0:02:48]} 3. Nf3 {[%clk 0:03:01]}  Bg7 {[%clk 0:02:48]} 4. g3 {[%clk 0:03:01]}  c6 {[%clk 0:02:47]} 5. b3 {[%clk 0:02:58]}  a5 {[%clk 0:02:46]} 6. Nc3 {[%clk 0:02:54]}  d5 {[%clk 0:02:39]} 7. Bg2 {[%clk 0:02:54]}  a4 {[%clk 0:02:23]} 8. O-O {[%clk 0:02:34]}  axb3 {[%clk 0:02:21]} 9. Qxb3 {[%clk 0:02:34]}  dxc4 {[%clk 0:02:21]} 10. Qxc4 {[%clk 0:02:33]}  O-O {[%clk 0:02:20]} 11. a4 {[%clk 0:02:17]}  b5 {[%clk 0:02:15]} 12. Qb3 {[%clk 0:02:11]}  Be6 {[%clk 0:02:06]} 13. Qb2 {[%clk 0:02:02]}  Bc4 {[%clk 0:01:56]} 14. Ne5 {[%clk 0:01:36]}  Qxd4 {[%clk 0:01:51]} 15. Nxc6 {[%clk 0:01:12]}  Nxc6 {[%clk 0:01:33]} 16. Bxc6 {[%clk 0:01:13]}  b4 {[%clk 0:01:14]} 17. Qxb4 {[%clk 0:01:11]}  Rab8 {[%clk 0:01:12]} 18. Bb5 {[%clk 0:01:08]}  Nd5 {[%clk 0:01:02]} 19. Nxd5 {[%clk 0:00:58]}  Bxb5 {[%clk 0:01:00]} 20. Nxe7+ {[%clk 0:00:49]}  Kh8 {[%clk 0:01:00]} 21. Qxd4 {[%clk 0:00:43]}  Bxd4 {[%clk 0:00:58]} 22. Ra2 {[%clk 0:00:33]}  Bc4 {[%clk 0:00:36]} 23. Rc2 {[%clk 0:00:29]}  Bb3 {[%clk 0:00:35]} 24. Bb2 {[%clk 0:00:27]}  Bxc2 {[%clk 0:00:26]} 25. Bxd4+ {[%clk 0:00:28]}  f6 {[%clk 0:00:27]} 26. a5 {[%clk 0:00:25]}  Be4 {[%clk 0:00:20]} 27. f3 {[%clk 0:00:24]}  Ba8 {[%clk 0:00:20]} 28. e4 {[%clk 0:00:22]}  Kg7 {[%clk 0:00:17]} 29. Rc1 {[%clk 0:00:19]}  Rfe8 {[%clk 0:00:15]} 30. Rc7 {[%clk 0:00:18]}  Rb7 {[%clk 0:00:12]} 31. Nd5+ {[%clk 0:00:13]}  Rxc7 {[%clk 0:00:12]} 32. Nxc7 {[%clk 0:00:14]}  Rc8 {[%clk 0:00:12]} 33. Bb6 {[%clk 0:00:14]}  Bb7 {[%clk 0:00:12]} 34. Kf2 {[%clk 0:00:13]}  Kf7 {[%clk 0:00:12]} 35. Ke3 {[%clk 0:00:13]}  Rd8 {[%clk 0:00:12]} 36. f4 {[%clk 0:00:11]}  Rd7 {[%clk 0:00:11]} 37. e5 {[%clk 0:00:10]}  fxe5 {[%clk 0:00:11]} 38. fxe5 {[%clk 0:00:11]}  Rd1 {[%clk 0:00:12]} 39. a6 {[%clk 0:00:10]}  Bxa6 {[%clk 0:00:11]} 40. Nxa6 {[%clk 0:00:10]}  Rh1 {[%clk 0:00:12]} 41. Nc7 {[%clk 0:00:07]}  Rxh2 {[%clk 0:00:12]} 42. e6+ {[%clk 0:00:08]}  Kf6 {[%clk 0:00:12]} 43. Bd4+ {[%clk 0:00:08]}  Ke7 {[%clk 0:00:09]} 44. Bc5+ {[%clk 0:00:08]}  Kf6 {[%clk 0:00:09]} 45. e7 {[%clk 0:00:08]}  Rh1 {[%clk 0:00:09]} 46. Ke2 {[%clk 0:00:05]}  Rh5 {[%clk 0:00:08]} 47. e8=Q {[%clk 0:00:03]}  Re5+ {[%clk 0:00:08]} 48. Qxe5+ {[%clk 0:00:02]}  Kxe5 {[%clk 0:00:09]} 49. Be3 {[%clk 0:00:02]}  Kf5 {[%clk 0:00:09]} 50. Nd5 {[%clk 0:00:01]}  h5 {[%clk 0:00:09]} 51. Kf2 {[%clk 0:00:02]}  g5 {[%clk 0:00:08]} 52. Ne7+ {[%clk 0:00:01]}  Kg4 {[%clk 0:00:08]} 53. Bxg5 {[%clk 0:00:01]}  Kxg5 {[%clk 0:00:08]} 54. Kf3 {[%clk 0:00:01]}  h4 {[%clk 0:00:07]} 55. g4 {[%clk 0:00:02]}  h3 {[%clk 0:00:07]} 56. Nf5 {[%clk 0:00:02]}  h2 {[%clk 0:00:08]} 57. Ng3 {[%clk 0:00:03]}  Kh4 {[%clk 0:00:08]} 58. Nh1 {[%clk 0:00:04]}  Kg5 {[%clk 0:00:08]} 59. Kg3 {[%clk 0:00:04]}  Kg6 {[%clk 0:00:09]} 60. Kxh2 {[%clk 0:00:04]}  Kh6 {[%clk 0:00:10]} 61. Kg3 {[%clk 0:00:05]} 1-0


[Site "https://www.chess.com"]

[Event "Titled Tuesday Blitz December 06 Late 2022"]
[White "Santos Flores, Alberto"]
[Black "Souleidis, Georgios"]
[WhiteFideId "3601234"]
[BlackFideId "4206827"]
[WhiteElo "2235"]
[BlackElo "2401"]
[Result "0-1"]
[Round "11"]
[TimeControl "180+1"]
[Date "2022.12.07"]
[WhiteClock "0:00:02"]
[BlackClock "0:00:08"]

1. d4 {[%clk 0:03:00]}  Nf6 {[%clk 0:02:54]} 2. Nf3 {[%clk 0:02:59]}  g6 {[%clk 0:02:54]} 3. Bf4 {[%clk 0:02:59]}  Bg7 {[%clk 0:02:54]} 4. e3 {[%clk 0:02:59]}  O-O {[%clk 0:02:54]} 5. Be2 {[%clk 0:02:59]}  d6 {[%clk 0:02:55]} 6. h3 {[%clk 0:02:59]}  Nfd7 {[%clk 0:02:55]} 7. Nbd2 {[%clk 0:02:57]}  e5 {[%clk 0:02:55]} 8. Bg3 {[%clk 0:02:53]}  Nc6 {[%clk 0:02:55]} 9. c3 {[%clk 0:02:52]}  Kh8 {[%clk 0:02:54]} 10. O-O {[%clk 0:02:48]}  f5 {[%clk 0:02:53]} 11. Nc4 {[%clk 0:02:41]}  e4 {[%clk 0:02:42]} 12. Nfd2 {[%clk 0:02:41]}  Nf6 {[%clk 0:02:39]} 13. f3 {[%clk 0:02:36]}  exf3 {[%clk 0:02:36]} 14. Bxf3 {[%clk 0:02:36]}  Bd7 {[%clk 0:02:34]} 15. e4 {[%clk 0:02:16]}  fxe4 {[%clk 0:02:29]} 16. Nxe4 {[%clk 0:02:17]}  Nxe4 {[%clk 0:02:17]} 17. Bxe4 {[%clk 0:02:18]}  Qg5 {[%clk 0:02:06]} 18. Bxc6 {[%clk 0:01:55]}  Bxc6 {[%clk 0:01:58]} 19. Qg4 {[%clk 0:01:46]}  Qxg4 {[%clk 0:01:52]} 20. hxg4 {[%clk 0:01:46]}  Rxf1+ {[%clk 0:01:53]} 21. Rxf1 {[%clk 0:01:42]}  Bb5 {[%clk 0:01:53]} 22. b3 {[%clk 0:01:25]}  d5 {[%clk 0:01:54]} 23. a4 {[%clk 0:01:01]}  Ba6 {[%clk 0:01:54]} 24. Rf7 {[%clk 0:01:01]}  dxc4 {[%clk 0:01:52]} 25. b4 {[%clk 0:01:01]}  c6 {[%clk 0:01:49]} 26. Bd6 {[%clk 0:00:57]}  Kg8 {[%clk 0:01:45]} 27. Rd7 {[%clk 0:00:54]}  Re8 {[%clk 0:01:35]} 28. Kf2 {[%clk 0:00:54]}  Bh6 {[%clk 0:01:30]} 29. Be5 {[%clk 0:00:53]}  Rf8+ {[%clk 0:01:30]} 30. Ke2 {[%clk 0:00:52]}  Rf7 {[%clk 0:01:27]} 31. Rd8+ {[%clk 0:00:52]}  Bf8 {[%clk 0:01:25]} 32. g5 {[%clk 0:00:49]}  Re7 {[%clk 0:00:56]} 33. Kd2 {[%clk 0:00:43]}  Kf7 {[%clk 0:00:56]} 34. Bf6 {[%clk 0:00:33]}  Rc7 {[%clk 0:00:45]} 35. d5 {[%clk 0:00:30]}  cxd5 {[%clk 0:00:45]} 36. b5 {[%clk 0:00:30]}  Bxb5 {[%clk 0:00:32]} 37. axb5 {[%clk 0:00:31]}  Be7 {[%clk 0:00:31]} 38. Bxe7 {[%clk 0:00:28]}  Kxe7 {[%clk 0:00:32]} 39. Rxd5 {[%clk 0:00:28]}  Rd7 {[%clk 0:00:31]} 40. Rxd7+ {[%clk 0:00:26]}  Kxd7 {[%clk 0:00:32]} 41. Ke3 {[%clk 0:00:27]}  Kc7 {[%clk 0:00:28]} 42. Kd4 {[%clk 0:00:27]}  Kb6 {[%clk 0:00:28]} 43. Kxc4 {[%clk 0:00:27]}  a5 {[%clk 0:00:25]} 44. bxa6 {[%clk 0:00:14]}  bxa6 {[%clk 0:00:26]} 45. Kb4 {[%clk 0:00:13]}  a5+ {[%clk 0:00:24]} 46. Ka4 {[%clk 0:00:13]}  Ka6 {[%clk 0:00:22]} 47. c4 {[%clk 0:00:08]}  Kb6 {[%clk 0:00:23]} 48. c5+ {[%clk 0:00:09]}  Kxc5 {[%clk 0:00:23]} 49. Kxa5 {[%clk 0:00:09]}  Kd5 {[%clk 0:00:22]} 50. Kb5 {[%clk 0:00:10]}  Ke5 {[%clk 0:00:20]} 51. Kc5 {[%clk 0:00:10]}  Kf5 {[%clk 0:00:20]} 52. Kd4 {[%clk 0:00:09]}  Kf4 {[%clk 0:00:08]} 53. Kd5 {[%clk 0:00:01]}  Kxg5 {[%clk 0:00:07]} 54. Ke4 {[%clk 0:00:01]}  Kg4 {[%clk 0:00:07]} 55. Ke3 {[%clk 0:00:02]}  Kg3 {[%clk 0:00:08]} 0-1


[Site "https://www.chess.com"]

[Event "Titled Tuesday Blitz December 06 Late 2022"]
[White "Savic, Miroslav"]
[Black "monkins"]
[WhiteFideId "14508494"]
[WhiteElo "2209"]
[BlackElo "2226"]
[Result "0-1"]
[Round "11"]
[TimeControl "180+1"]
[Date "2022.12.07"]
[WhiteClock "0:00:05"]
[BlackClock "0:00:30"]

1. Nf3 {[%clk 0:02:52]}  Nf6 {[%clk 0:02:59]} 2. c4 {[%clk 0:02:51]}  c5 {[%clk 0:02:59]} 3. Nc3 {[%clk 0:02:50]}  d5 {[%clk 0:03:00]} 4. cxd5 {[%clk 0:02:49]}  Nxd5 {[%clk 0:03:01]} 5. e4 {[%clk 0:02:48]}  Nxc3 {[%clk 0:02:58]} 6. bxc3 {[%clk 0:02:47]}  g6 {[%clk 0:02:58]} 7. Bb5+ {[%clk 0:02:44]}  Bd7 {[%clk 0:02:58]} 8. a4 {[%clk 0:02:42]}  Bg7 {[%clk 0:02:56]} 9. O-O {[%clk 0:02:41]}  a6 {[%clk 0:02:56]} 10. Bc4 {[%clk 0:02:35]}  O-O {[%clk 0:02:55]} 11. h3 {[%clk 0:02:33]}  Nc6 {[%clk 0:02:53]} 12. Rb1 {[%clk 0:02:26]}  Na5 {[%clk 0:02:44]} 13. Bd5 {[%clk 0:02:23]}  Qc7 {[%clk 0:02:38]} 14. d4 {[%clk 0:02:17]}  e6 {[%clk 0:02:37]} 15. Ba2 {[%clk 0:02:13]}  b5 {[%clk 0:02:23]} 16. Ba3 {[%clk 0:01:58]}  Nb7 {[%clk 0:02:09]} 17. dxc5 {[%clk 0:01:54]}  Rfd8 {[%clk 0:02:08]} 18. Qe2 {[%clk 0:01:16]}  Nxc5 {[%clk 0:02:02]} 19. axb5 {[%clk 0:01:06]}  axb5 {[%clk 0:01:43]} 20. Bxc5 {[%clk 0:01:02]}  Qxc5 {[%clk 0:01:43]} 21. Bb3 {[%clk 0:00:58]}  Bxc3 {[%clk 0:01:35]} 22. Rfc1 {[%clk 0:00:51]}  b4 {[%clk 0:01:36]} 23. Ne1 {[%clk 0:00:21]}  Bb5 {[%clk 0:01:30]} 24. Qf3 {[%clk 0:00:21]}  Qe5 {[%clk 0:01:19]} 25. Nc2 {[%clk 0:00:18]}  Bd3 {[%clk 0:01:14]} 26. Qg4 {[%clk 0:00:09]}  Qxe4 {[%clk 0:01:08]} 27. Qg5 {[%clk 0:00:06]}  Qf5 {[%clk 0:00:44]} 28. Qh6 {[%clk 0:00:05]}  g5 {[%clk 0:00:30]} 0-1


[Site "https://www.chess.com"]

[Event "Titled Tuesday Blitz December 06 Late 2022"]
[White "Saya, Ethan"]
[Black "Shapiro, Daniel"]
[WhiteFideId "26095181"]
[BlackFideId "2001780"]
[WhiteElo "2178"]
[BlackElo "2329"]
[Result "0-1"]
[Round "11"]
[TimeControl "180+1"]
[Date "2022.12.07"]
[WhiteClock "0:00:32"]
[BlackClock "0:00:06"]

1. b3 {[%clk 0:02:54]}  e5 {[%clk 0:02:59]} 2. Bb2 {[%clk 0:02:54]}  d6 {[%clk 0:02:59]} 3. d4 {[%clk 0:02:54]}  e4 {[%clk 0:02:58]} 4. c4 {[%clk 0:02:54]}  c6 {[%clk 0:02:57]} 5. Nc3 {[%clk 0:02:55]}  Nf6 {[%clk 0:02:57]} 6. e3 {[%clk 0:02:54]}  d5 {[%clk 0:02:57]} 7. cxd5 {[%clk 0:02:53]}  cxd5 {[%clk 0:02:57]} 8. Rc1 {[%clk 0:02:54]}  a6 {[%clk 0:02:56]} 9. Nge2 {[%clk 0:02:52]}  Nc6 {[%clk 0:02:55]} 10. Nf4 {[%clk 0:02:52]}  Be7 {[%clk 0:02:46]} 11. Nh5 {[%clk 0:02:47]}  O-O {[%clk 0:02:34]} 12. Nxf6+ {[%clk 0:02:34]}  Bxf6 {[%clk 0:02:35]} 13. Be2 {[%clk 0:02:34]}  g6 {[%clk 0:02:24]} 14. O-O {[%clk 0:02:27]}  Re8 {[%clk 0:02:16]} 15. a3 {[%clk 0:02:26]}  Bg5 {[%clk 0:02:10]} 16. b4 {[%clk 0:02:25]}  f5 {[%clk 0:02:08]} 17. Qb3 {[%clk 0:02:24]}  Be6 {[%clk 0:02:00]} 18. Na4 {[%clk 0:02:24]}  f4 {[%clk 0:01:50]} 19. exf4 {[%clk 0:02:17]}  Bxf4 {[%clk 0:01:49]} 20. Nc5 {[%clk 0:02:16]}  Bc8 {[%clk 0:01:41]} 21. Rc2 {[%clk 0:02:13]}  Ne7 {[%clk 0:01:30]} 22. Bc1 {[%clk 0:01:26]}  Qd6 {[%clk 0:01:13]} 23. Bxf4 {[%clk 0:01:24]}  Qxf4 {[%clk 0:01:13]} 24. Qe3 {[%clk 0:01:24]}  g5 {[%clk 0:01:04]} 25. Bh5 {[%clk 0:01:21]}  Rf8 {[%clk 0:00:59]} 26. Rfc1 {[%clk 0:01:17]}  Nf5 {[%clk 0:00:56]} 27. Qxf4 {[%clk 0:01:15]}  gxf4 {[%clk 0:00:55]} 28. Nb3 {[%clk 0:01:15]}  Be6 {[%clk 0:00:51]} 29. Bg4 {[%clk 0:01:14]}  Nxd4 {[%clk 0:00:48]} 30. Bxe6+ {[%clk 0:01:11]}  Nxe6 {[%clk 0:00:48]} 31. Nc5 {[%clk 0:01:12]}  Ng5 {[%clk 0:00:40]} 32. Nd7 {[%clk 0:01:08]}  Rf7 {[%clk 0:00:36]} 33. Ne5 {[%clk 0:01:06]}  Re7 {[%clk 0:00:34]} 34. Ng4 {[%clk 0:01:03]}  e3 {[%clk 0:00:30]} 35. fxe3 {[%clk 0:01:02]}  fxe3 {[%clk 0:00:30]} 36. Re1 {[%clk 0:00:35]}  d4 {[%clk 0:00:29]} 37. Rc5 {[%clk 0:00:35]}  Nf7 {[%clk 0:00:21]} 38. Rf5 {[%clk 0:00:32]}  Rd8 {[%clk 0:00:20]} 39. Nf6+ {[%clk 0:00:30]}  Kg7 {[%clk 0:00:19]} 40. Nd5 {[%clk 0:00:31]}  Re5 {[%clk 0:00:17]} 41. Rxe5 {[%clk 0:00:28]}  Nxe5 {[%clk 0:00:17]} 42. Nxe3 {[%clk 0:00:28]}  dxe3 {[%clk 0:00:16]} 43. Rxe3 {[%clk 0:00:29]}  Kf6 {[%clk 0:00:15]} 44. Rh3 {[%clk 0:00:27]}  Rd1+ {[%clk 0:00:15]} 45. Kf2 {[%clk 0:00:26]}  Rd2+ {[%clk 0:00:15]} 46. Ke1 {[%clk 0:00:25]}  Rxg2 {[%clk 0:00:14]} 47. Rxh7 {[%clk 0:00:26]}  b5 {[%clk 0:00:13]} 48. Rh6+ {[%clk 0:00:25]}  Ng6 {[%clk 0:00:14]} 49. Rh7 {[%clk 0:00:23]}  Ra2 {[%clk 0:00:12]} 50. h4 {[%clk 0:00:22]}  Rh2 {[%clk 0:00:09]} 51. h5 {[%clk 0:00:19]}  Ne5 {[%clk 0:00:09]} 52. Rh6+ {[%clk 0:00:19]}  Kf5 {[%clk 0:00:08]} 53. Rxa6 {[%clk 0:00:20]}  Rxh5 {[%clk 0:00:07]} 54. Ra5 {[%clk 0:00:20]}  Ke4 {[%clk 0:00:06]} 55. Kd2 {[%clk 0:00:18]}  Rh2+ {[%clk 0:00:05]} 56. Kc3 {[%clk 0:00:18]}  Rh3+ {[%clk 0:00:06]} 57. Kb2 {[%clk 0:00:18]}  Nc4+ {[%clk 0:00:05]} 58. Ka2 {[%clk 0:00:19]}  Nxa5 {[%clk 0:00:06]} 59. bxa5 {[%clk 0:00:19]}  Kd4 {[%clk 0:00:06]} 60. a6 {[%clk 0:00:20]}  Kc5 {[%clk 0:00:06]} 61. a7 {[%clk 0:00:19]}  Rh8 {[%clk 0:00:07]} 62. a4 {[%clk 0:00:19]}  Ra8 {[%clk 0:00:07]} 63. axb5 {[%clk 0:00:19]}  Rxa7+ {[%clk 0:00:08]} 64. Kb3 {[%clk 0:00:20]}  Kxb5 {[%clk 0:00:08]} 65. Kc3 {[%clk 0:00:21]}  Ra3+ {[%clk 0:00:08]} 66. Kd4 {[%clk 0:00:21]}  Rb3 {[%clk 0:00:08]} 67. Ke4 {[%clk 0:00:22]}  Rc3 {[%clk 0:00:08]} 68. Kd4 {[%clk 0:00:23]}  Kb4 {[%clk 0:00:08]} 69. Kd5 {[%clk 0:00:23]}  Rc8 {[%clk 0:00:08]} 70. Ke4 {[%clk 0:00:24]}  Kc4 {[%clk 0:00:08]} 71. Ke5 {[%clk 0:00:25]}  Rc6 {[%clk 0:00:07]} 72. Ke4 {[%clk 0:00:26]}  Re6+ {[%clk 0:00:07]} 73. Kf5 {[%clk 0:00:26]}  Kd5 {[%clk 0:00:06]} 74. Kf4 {[%clk 0:00:27]}  Kd4 {[%clk 0:00:06]} 75. Kf3 {[%clk 0:00:28]}  Re4 {[%clk 0:00:06]} 76. Kf2 {[%clk 0:00:29]}  Re3 {[%clk 0:00:06]} 77. Kg2 {[%clk 0:00:30]}  Ke4 {[%clk 0:00:06]} 78. Kf2 {[%clk 0:00:30]}  Kf4 {[%clk 0:00:06]} 79. Kg2 {[%clk 0:00:31]}  Re2+ {[%clk 0:00:06]} 80. Kh3 {[%clk 0:00:31]}  Rf2 {[%clk 0:00:06]} 81. Kh4 {[%clk 0:00:32]}  Rh2# {[%clk 0:00:06]} 0-1


[Site "https://www.chess.com"]

[Event "Titled Tuesday Blitz December 06 Late 2022"]
[White "Shohat, Yotam"]
[Black "Mazurkiewicz, Michal"]
[WhiteFideId "2813955"]
[BlackFideId "1124943"]
[WhiteElo "2216"]
[BlackElo "2081"]
[Result "1-0"]
[Round "11"]
[TimeControl "180+1"]
[Date "2022.12.06"]
[WhiteClock "0:01:22"]
[BlackClock "0:00:20"]

1. f4 {[%clk 0:02:55]}  Nf6 {[%clk 0:02:45]} 2. Nf3 {[%clk 0:02:55]}  g6 {[%clk 0:02:45]} 3. Nc3 {[%clk 0:02:52]}  Bg7 {[%clk 0:02:45]} 4. e4 {[%clk 0:02:51]}  d6 {[%clk 0:02:45]} 5. d4 {[%clk 0:02:49]}  O-O {[%clk 0:02:45]} 6. e5 {[%clk 0:02:49]}  Nfd7 {[%clk 0:02:44]} 7. h4 {[%clk 0:02:47]}  c5 {[%clk 0:02:39]} 8. h5 {[%clk 0:02:46]}  cxd4 {[%clk 0:02:38]} 9. hxg6 {[%clk 0:02:44]}  dxc3 {[%clk 0:02:25]} 10. gxf7+ {[%clk 0:02:43]}  Rxf7 {[%clk 0:02:18]} 11. Bc4 {[%clk 0:02:34]}  Nf8 {[%clk 0:01:44]} 12. Ng5 {[%clk 0:02:29]}  e6 {[%clk 0:01:36]} 13. Nxf7 {[%clk 0:02:28]}  Kxf7 {[%clk 0:01:37]} 14. f5 {[%clk 0:02:28]}  d5 {[%clk 0:01:28]} 15. Qh5+ {[%clk 0:02:16]}  Kg8 {[%clk 0:01:26]} 16. f6 {[%clk 0:02:16]}  Bxf6 {[%clk 0:00:36]} 17. exf6 {[%clk 0:02:11]}  Qxf6 {[%clk 0:00:22]} 18. Bd3 {[%clk 0:02:06]}  cxb2 {[%clk 0:00:18]} 19. Bxh7+ {[%clk 0:02:06]}  Kg7 {[%clk 0:00:18]} 20. Bxb2 {[%clk 0:01:33]}  Qxb2 {[%clk 0:00:19]} 21. Qh6+ {[%clk 0:01:28]}  Kf7 {[%clk 0:00:20]} 22. O-O+ {[%clk 0:01:28]}  Ke7 {[%clk 0:00:20]} 23. Qxf8+ {[%clk 0:01:27]}  Kd7 {[%clk 0:00:20]} 24. Rf7+ {[%clk 0:01:23]}  Kc6 {[%clk 0:00:20]} 25. Qxc8+ {[%clk 0:01:23]}  Kd6 {[%clk 0:00:20]} 26. Qc7# {[%clk 0:01:22]} 1-0


[Site "https://www.chess.com"]